bitfinex/quotes_SOLUSD_20250917
["timestamp","ask_amount","ask_price","bid_price","bid_amount"]
[1758130734802,0.03,234.84,234.83,6.50540146]
[1758130740212,0.03,234.84,234.83,4.25839969]
[1758130740421,0.03,234.84,234.83,6.51540146]
[1758130740990,0.03,234.84,234.83,4.97839969]
[1758130741185,0.03,234.84,234.83,6.51540146]
[1758130741619,0.03,234.84,234.83,8.22119476]
[1758130741810,0.03,234.84,234.83,6.68419299]
[1758130742020,0.03,234.84,234.83,7.37946691]
[1758130743722,0.03,234.84,234.83,6.65946691]
[1758130743890,0.03,234.84,234.83,7.36946691]
[1758130745522,0.03,234.84,234.83,4.25839969]
[1758130745707,0.03,234.84,234.83,6.65946691]
[1758130746021,0.03,234.84,234.83,7.36946691]
[1758130746613,0.03,234.84,234.83,4.96839969]
[1758130746816,0.03,234.84,234.83,7.36946691]
[1758130751022,0.03,234.84,234.83,9.07518747]
[1758130754604,0.03,234.84,234.83,22.67078148]
[1758130760209,1e-08,234.87,234.86,39.59559401]
[1758130760414,1e-08,234.87,234.86,41.99666123]
[1758130760632,1e-08,234.87,234.86,75.60666123]
[1758130760830,0.03,234.89,234.87,13.59559401]
[1758130761125,0.03,234.89,234.88,18.39772845]
[1758130761327,0.68,234.99,234.95,26.0]
[1758130761513,0.68,235.01,234.98,2.40106722]
[1758130761717,0.68,235.01,235.0,2.40106722]
[1758130761915,0.68,235.01,235.0,6.65638636]
[1758130762116,6.7549454,235.08,235.0,6.65638636]
[1758130762117,0.1,235.08,235.0,17.29468423]
[1758130762319,0.68,235.07,235.0,4.25531914]
[1758130762545,0.68,235.06,235.01,35.30106722]
[1758130762842,0.68,235.05,235.02,2.40106722]
[1758130763152,0.68,235.04,235.01,35.30106722]
[1758130763310,0.68,235.03,235.01,35.30106722]
[1758130763623,0.68,235.02,235.01,35.30106722]
[1758130764014,0.68,235.04,235.02,4.25495702]
[1758130764219,0.1,235.08,235.02,4.25495702]
[1758130764420,0.68,235.06,235.02,4.25495702]
[1758130764646,0.1,235.08,235.05,2.40106722]
[1758130765013,0.68,235.07,235.05,2.40106722]
[1758130765217,0.68,235.06,235.05,2.40106722]
[1758130765637,0.68,235.06,235.04,32.9]
[1758130765638,0.68,235.06,235.04,35.30106722]
[1758130765949,0.68,235.06,235.05,4.25441395]
[1758130766840,0.1,235.08,235.05,4.25441395]
[1758130767052,0.78,235.08,235.06,2.40106722]
[1758130767229,0.1,235.08,235.07,2.40106722]
[1758130768020,0.1,235.08,235.07,39.5351192]
[1758130769448,0.1,235.08,235.07,37.13405198]
[1758130769627,0.1,235.08,235.07,39.5351192]
[1758130770336,0.1,235.08,235.07,32.88]
[1758130770536,0.78,235.08,235.07,32.88]
[1758130771223,0.1,235.08,235.07,35.28106722]
[1758130771444,0.78,235.08,235.07,35.28106722]
[1758130771942,0.78,235.08,235.07,32.88]
[1758130772352,0.78,235.08,235.07,35.28106722]
[1758130772853,0.78,235.08,235.05,26.0]
[1758130773041,0.78,235.08,235.06,32.88]
[1758130773250,0.1,235.08,235.06,35.28106722]
[1758130773428,0.1,235.08,235.06,32.88]
[1758130773632,0.1,235.08,235.06,35.28106722]
[1758130773929,0.1,235.08,235.07,7.3351192]
[1758130776131,0.1,235.08,235.07,40.2151192]
[1758130776440,0.1,235.08,235.07,41.23880555]
[1758130776642,0.1,235.08,235.07,39.5351192]
[1758130777150,0.1,235.08,235.07,4.93405198]
[1758130777354,0.1,235.08,235.07,7.3351192]
[1758130777534,0.1,235.08,235.07,40.1951192]
[1758130778549,0.1,235.08,235.07,6.6551192]
[1758130778849,0.1,235.08,235.07,32.86]
[1758130779942,0.1,235.08,235.07,37.11405198]
[1758130780655,0.1,235.08,235.07,39.5151192]
[1758130781745,0.1,235.08,235.07,37.11405198]
[1758130781965,0.1,235.08,235.07,39.5151192]
[1758130782456,0.1,235.08,235.07,4.25405198]
[1758130782755,0.76,235.08,235.04,4.25457702]
[1758130782948,0.66,235.07,235.05,32.86]
[1758130783135,0.66,235.06,235.04,4.25457702]
[1758130783335,0.66,235.06,235.05,32.86]
[1758130784254,0.76,235.08,235.05,37.11424931]
[1758130784458,0.66,235.07,235.05,37.11424931]
[1758130785444,0.1,235.08,235.06,32.86]
[1758130785650,0.1,235.08,235.06,35.26106722]
[1758130785830,0.1,235.08,235.07,2.40106722]
[1758130786266,0.1,235.08,235.07,6.6551192]
[1758130786458,0.1,235.08,235.07,7.3351192]
[1758130786850,0.1,235.08,235.07,6.6551192]
[1758130787635,0.1,235.08,235.07,4.25405198]
[1758130788961,0.76,235.08,235.06,37.11419268]
[1758130789663,0.1,235.08,235.06,37.11419268]
[1758130789854,0.76,235.08,235.06,37.11419268]
[1758130790043,0.1,235.08,235.06,37.11419268]
[1758130790242,0.1,235.08,235.07,3.08106722]
[1758130790843,0.1,235.08,235.07,2.40106722]
[1758130791746,0.1,235.08,235.07,7.3351192]
[1758130793798,0.1,235.08,235.07,4.93405198]
[1758130793947,0.1,235.08,235.07,4.25405198]
[1758130794145,0.1,235.08,235.07,39.5151192]
[1758130794649,0.1,235.08,235.07,37.11405198]
[1758130794857,0.1,235.08,235.07,39.5151192]
[1758130796858,0.1,235.08,235.07,37.11405198]
[1758130798155,0.1,235.08,235.07,37.81405198]
[1758130798356,0.1,235.08,235.07,40.2151192]
[1758130799061,0.1,235.08,235.07,37.81405198]
[1758130799246,0.1,235.08,235.07,40.2151192]
[1758130800172,0.03,235.11,235.07,50.85024916]
[1758130800377,0.03,235.11,235.1,2.40106722]
[1758130800674,0.03,235.11,235.1,35.26106722]
[1758130800855,0.03,235.11,235.1,35.96106722]
[1758130801267,10.62576616,235.28,235.1,35.96106722]
[1758130801268,0.69,235.22,235.18,2.40106722]
[1758130801458,0.69,235.21,235.19,2.40106722]
[1758130801774,0.69,235.21,235.19,1.53212329]
[1758130801975,4.25007437,235.29,235.18,32.86]
[1758130801976,0.69,235.23,235.2,1.53212329]
[1758130802276,13.59559401,235.34,235.2,1.53212329]
[1758130802277,0.69,235.22,235.2,4.25170068]
[1758130802473,0.69,235.21,235.2,4.25170068]
[1758130802649,0.69,235.21,235.18,37.11189866]
[1758130803167,0.69,235.23,235.18,47.74205428]
[1758130803365,0.69,235.22,235.18,47.74205428]
[1758130803546,0.69,235.24,235.19,0.7]
[1758130803750,0.69,235.23,235.18,47.74205428]
[1758130804064,0.7,235.22,235.18,47.74205428]
[1758130804258,1.53212329,235.24,235.18,48.40205428]
[1758130804474,0.7,235.23,235.18,49.93417757]
[1758130804771,10.62454439,235.31,235.19,2.19212329]
[1758130804772,2.23212329,235.25,235.19,2.19212329]
[1758130804980,2.23212329,235.25,235.2,34.37212329]
[1758130804981,0.7,235.25,235.2,34.37212329]
[1758130805184,0.7,235.24,235.2,34.37212329]
[1758130805363,0.7,235.24,235.2,35.03212329]
[1758130805688,1.53212329,235.26,235.2,35.03212329]
[1758130805689,2.23212329,235.26,235.2,35.03212329]
[1758130805888,0.7,235.26,235.2,35.03212329]
[1758130806189,0.7,235.26,235.2,33.5]
[1758130806358,2.23212329,235.26,235.21,0.66]
[1758130806562,0.7,235.25,235.2,34.37212329]
[1758130806773,0.7,235.24,235.21,4.25151991]
[1758130807185,0.7,235.23,235.19,4.9117199]
[1758130807364,0.7,235.23,235.2,32.84]
[1758130807365,0.7,235.22,235.2,32.84]
[1758130807685,0.7,235.21,235.18,32.84]
[1758130807994,0.7,235.2,235.18,32.84]
[1758130808200,2.23212329,235.19,235.15,4.25245809]
[1758130808494,1.53212329,235.17,235.14,37.09277817]
[1758130808681,2.23212329,235.16,235.14,4.25277817]
[1758130810587,0.7,235.18,235.14,4.25277817]
[1758130810785,1.53212329,235.16,235.14,4.25277817]
[1758130810991,2.23212329,235.16,235.14,4.25277817]
[1758130811309,1.53212329,235.16,235.14,4.25277817]
[1758130811492,2.23212329,235.16,235.14,4.25277817]
[1758130812072,0.7,235.16,235.14,4.25277817]
[1758130812390,0.7,235.23,235.15,33.5]
[1758130812561,2.26212329,235.25,235.19,1.53212329]
[1758130812765,2.26212329,235.25,235.19,2.19212329]
[1758130813285,0.73,235.25,235.2,1.53212329]
[1758130813493,0.73,235.25,235.21,0.66]
[1758130813696,0.03,235.25,235.22,0.66]
[1758130813887,0.03,235.25,235.21,4.25151991]
[1758130814090,0.03,235.25,235.21,15.5403197]
[1758130814287,0.03,235.25,235.24,1.53212329]
[1758130814469,0.03,235.25,235.22,0.66]
[1758130814800,0.03,235.25,235.24,1.53212329]
[1758130815178,0.03,235.25,235.24,0.66]
[1758130815401,0.03,235.25,235.24,2.19212329]
[1758130815573,0.03,235.25,235.24,0.66]
[1758130815895,0.03,235.25,235.24,6.44310101]
[1758130816203,0.03,235.25,235.24,4.25097772]
[1758130818196,0.03,235.25,235.22,4.25128907]
[1758130818366,0.03,235.25,235.23,0.66]
[1758130818571,0.03,235.25,235.23,2.19212329]
[1758130818771,0.03,235.25,235.24,0.66]
[1758130819577,0.03,235.25,235.24,2.19212329]
[1758130820295,0.03,235.25,235.24,6.44310101]
[1758130820706,0.03,235.25,235.24,5.78310101]
[1758130820910,0.03,235.25,235.24,6.44310101]
[1758130821408,0.03,235.25,235.24,4.91097772]
[1758130821614,0.03,235.25,235.24,6.44310101]
[1758130822110,0.03,235.25,235.24,20.03869502]
[1758130823680,0.03,235.25,235.24,18.50657173]
[1758130823977,0.03,235.25,235.24,20.03869502]
[1758130824189,0.03,235.25,235.24,53.51869502]
[1758130825091,0.03,235.25,235.24,55.22093133]
[1758130825294,1e-08,235.28,235.27,39.59559401]
[1758130825492,1e-08,235.28,235.27,74.6477173]
[1758130825795,1e-08,235.28,235.27,75.3077173]
[1758130825997,1e-08,235.28,235.27,75.73276086]
[1758130826340,1e-08,235.28,235.27,79.98319652]
[1758130826825,0.7,235.43,235.32,13.59559401]
[1758130826994,0.7,235.49,235.42,1.53212329]
[1758130827302,0.7,235.48,235.43,33.5]
[1758130827507,0.7,235.47,235.43,33.5]
[1758130827716,0.7,235.46,235.43,33.5]
[1758130827918,10.37369608,235.56,235.43,33.5]
[1758130828102,0.7,235.46,235.41,35.03212329]
[1758130828424,0.7,235.46,235.42,1.53212329]
[1758130829133,0.7,235.48,235.43,1.53212329]
[1758130829294,0.7,235.48,235.41,33.5]
[1758130829295,4.24527527,235.56,235.41,34.16]
[1758130829500,0.7,235.48,235.41,34.16]
[1758130829713,0.7,235.48,235.43,1.53212329]
[1758130829901,0.7,235.48,235.43,2.19212329]
[1758130830108,0.7,235.48,235.44,4.24736663]
[1758130830304,2.23212329,235.5,235.44,4.90736663]
[1758130830526,0.7,235.49,235.44,5.77948992]
[1758130830824,0.7,235.48,235.44,4.24736663]
[1758130831001,2.23212329,235.47,235.42,4.24761175]
[1758130831203,0.7,235.46,235.42,4.24761175]
[1758130831412,0.7,235.46,235.4,4.90794379]
[1758130831616,2.23212329,235.46,235.4,38.36794379]
[1758130831812,0.7,235.46,235.4,39.24006708]
[1758130832320,0.7,235.46,235.4,37.70794379]
[1758130832620,0.7,235.46,235.41,1.53212329]
[1758130832818,132.8,235.63,235.45,1.53212329]
[1758130832991,0.7,235.51,235.45,1.53212329]
[1758130833194,1.53212329,235.52,235.45,1.53212329]
[1758130833412,59.48,235.6,235.44,0.66]
[1758130833413,2.23212329,235.51,235.44,2.19212329]
[1758130833621,0.7,235.5,235.44,14.95129395]
[1758130834217,0.7,235.5,235.45,4.24718623]
[1758130834423,1.53212329,235.51,235.45,4.24718623]
[1758130834610,0.68,235.49,235.45,4.24718623]
[1758130834807,0.68,235.49,235.43,36.61857465]
[1758130834808,0.68,235.48,235.37,0.7]
[1758130835024,0.68,235.48,235.28,21.25127507]
[1758130835025,0.68,235.48,235.42,12.75998469]
[1758130835233,0.59,235.48,235.38,0.7]
[1758130835525,0.59,235.48,235.38,2.23212329]
[1758130835706,0.59,235.48,235.39,0.7]
[1758130835906,1.53212329,235.45,235.39,0.7]
[1758130836100,0.59,235.48,235.4,4.24808836]
[1758130836339,1.53212329,235.47,235.41,0.7]
[1758130836630,1.53212329,235.49,235.41,0.7]
[1758130836809,1.53212329,235.5,235.43,1.53212329]
[1758130837007,1.53212329,235.5,235.44,0.7]
[1758130837323,30.24521687,235.56,235.44,0.7]
[1758130837324,1.53212329,235.49,235.44,0.7]
[1758130837511,0.59,235.51,235.44,0.7]
[1758130837714,1.53212329,235.49,235.44,0.7]
[1758130838513,1.53212329,235.45,235.41,12.75971333]
[1758130838719,0.59,235.48,235.41,17.00756431]
[1758130838911,1.53212329,235.45,235.41,17.00756431]
[1758130839111,0.59,235.48,235.41,4.94785098]
[1758130839411,1.53212329,235.45,235.41,4.94785098]
[1758130839606,1.53212329,235.46,235.42,0.7]
[1758130839814,1.53212329,235.47,235.43,0.7]
[1758130840021,0.59,235.5,235.44,4.24736663]
[1758130840217,132.8,235.59,235.45,0.7]
[1758130840218,0.59,235.53,235.45,0.7]
[1758130840420,0.59,235.59,235.48,1.53212329]
[1758130840736,1.53212329,235.57,235.49,0.7]
[1758130841041,0.59,235.64,235.49,0.7]
[1758130841228,1.53212329,235.59,235.49,0.7]
[1758130841424,0.59,235.59,235.5,1.53212329]
[1758130841633,1.53212329,235.58,235.51,0.7]
[1758130842117,0.59,235.59,235.51,4.94595444]
[1758130842322,1.53212329,235.56,235.51,4.94595444]
[1758130842640,1.53212329,235.55,235.49,4.24636001]
[1758130842838,1.53212329,235.55,235.51,0.7]
[1758130843052,0.59,235.62,235.52,0.7]
[1758130843346,1.53212329,235.6,235.52,2.23212329]
[1758130843550,0.59,235.67,235.55,1.53212329]
[1758130843718,0.59,235.67,235.56,0.7]
[1758130844031,30.89703956,235.82,235.54,0.7]
[1758130844032,0.59,235.66,235.54,0.7]
[1758130844225,4.24358158,235.65,235.54,4.94549596]
[1758130844426,0.59,235.64,235.54,15.55940442]
[1758130844630,0.03,235.58,235.54,15.55940442]
[1758130844826,0.03,235.58,235.55,0.7]
[1758130845015,0.03,235.58,235.51,71.45505988]
[1758130845016,0.03,235.58,235.52,5.77787737]
[1758130845211,1.56212329,235.58,235.54,0.7]
[1758130845458,1.56212329,235.58,235.49,13.59559401]
[1758130845459,0.03,235.58,235.5,4.24612841]
[1758130845745,1.53212329,235.56,235.52,0.7]
[1758130845911,1.53212329,235.56,235.5,4.24612841]
[1758130845912,1.53212329,235.54,235.51,4.24346263]
[1758130846113,4.83542494,235.55,235.47,0.7]
[1758130846333,1.53212329,235.51,235.47,4.94681802]
[1758130846544,1.53212329,235.49,235.48,1.70100572]
[1758130846715,0.59,235.54,235.44,0.7]
[1758130847034,0.59,235.54,235.44,4.94541109]
[1758130847035,1.53212329,235.48,235.44,4.94541109]
[1758130847244,0.59,235.54,235.45,0.7]
[1758130847452,0.03,235.58,235.47,27.53212329]
[1758130847750,0.03,235.58,235.52,1.53212329]
[1758130847917,0.03,235.58,235.52,3.91712103]
[1758130848256,0.03,235.58,235.54,4.24556338]
[1758130848422,3.94712103,235.58,235.53,4.94571837]
[1758130849141,3.94712103,235.58,235.53,8.8628394]
[1758130849346,0.03,235.58,235.53,4.94571837]
[1758130849722,0.03,235.58,235.54,0.7]
[1758130850257,0.03,235.58,235.56,4.24520292]
[1758130850762,0.03,235.58,235.57,0.7]
[1758130852257,0.03,235.58,235.57,4.94502271]
[1758130853367,0.03,235.58,235.57,4.24502271]
[1758130854364,0.03,235.58,235.57,4.94502271]
[1758130855236,0.03,235.58,235.56,3.91712103]
[1758130855237,3.94712103,235.58,235.56,3.91712103]
[1758130855456,0.62,235.58,235.51,4.24594386]
[1758130855672,0.62,235.58,235.53,4.24377956]
[1758130855836,3.91712103,235.55,235.51,4.24594386]
[1758130856156,3.91712103,235.53,235.51,10.60972998]
[1758130856329,4.24529909,235.56,235.51,10.60972998]
[1758130856534,3.91712103,235.52,235.48,0.7]
[1758130856751,3.91712103,235.5,235.48,0.7]
[1758130857452,3.91712103,235.51,235.49,0.67]
[1758130857651,0.59,235.55,235.49,0.67]
[1758130857859,3.91712103,235.52,235.49,0.67]
[1758130858063,0.03,235.58,235.5,0.67]
[1758130858241,3.91712103,235.56,235.51,4.24610419]
[1758130858435,0.03,235.58,235.52,0.67]
[1758130858662,0.03,235.58,235.55,3.91712103]
[1758130858846,0.03,235.58,235.53,3.91712103]
[1758130859047,0.03,235.58,235.54,0.67]
[1758130859242,0.03,235.58,235.54,4.58712103]
[1758130859561,0.03,235.58,235.55,0.67]
[1758130860075,0.03,235.58,235.54,7.83424206]
[1758130860076,0.03,235.58,235.56,4.58712103]
[1758130860249,0.03,235.58,235.57,8.16214374]
[1758130860567,0.03,235.58,235.57,8.83214374]
[1758130860776,0.03,235.58,235.57,44.51061672]
[1758130861067,0.03,235.58,235.57,48.42773775]
[1758130861868,0.03,235.58,235.57,50.20609061]
[1758130862759,0.03,235.58,235.57,129.10609061]
[1758130862946,0.03,235.58,235.57,50.20609061]
[1758130863148,0.03,235.58,235.57,50.63059288]
[1758130863473,0.59,235.77,235.58,13.59559401]
[1758130863670,0.59,235.83,235.72,5.69547389]
[1758130863844,0.59,235.82,235.71,5.69547389]
[1758130864167,0.59,235.81,235.71,0.7]
[1758130864340,0.59,235.81,235.72,4.24232139]
[1758130864548,0.59,235.81,235.72,9.93779528]
[1758130864759,0.59,235.81,235.73,5.69547389]
[1758130864950,0.59,235.81,235.72,14.84227899]
[1758130865138,0.59,235.85,235.73,0.7]
[1758130865537,4.83002771,235.85,235.73,0.7]
[1758130865945,0.34,235.92,235.73,0.7]
[1758130865946,0.59,235.89,235.73,0.7]
[1758130866349,4.23944378,235.88,235.74,14.84686518]
[1758130866551,0.59,235.89,235.75,35.8]
[1758130866751,5.69547389,235.86,235.79,5.69547389]
[1758130866943,0.59,235.89,235.8,0.7]
[1758130867366,0.59,235.89,235.8,6.39547389]
[1758130867367,5.69547389,235.86,235.8,6.39547389]
[1758130867746,0.59,235.89,235.8,6.39547389]
[1758130867950,0.59,235.89,235.81,5.69547389]
[1758130868158,0.34,235.92,235.75,61.1]
[1758130868486,0.34,235.92,235.82,4.24052243]
[1758130868778,5.69547389,235.9,235.84,5.69547389]
[1758130868963,0.34,235.92,235.85,5.69547389]
[1758130869162,0.34,235.92,235.83,0.7]
[1758130869352,5.69547389,235.9,235.84,5.69547389]
[1758130869550,5.69547389,235.89,235.83,0.7]
[1758130869744,5.69547389,235.86,235.8,4.24075363]
[1758130869944,5.69547389,235.85,235.79,0.7]
[1758130870249,0.59,235.91,235.79,4.94096914]
[1758130870570,5.69547389,235.88,235.8,0.7]
[1758130870874,4.57879393,235.92,235.8,0.7]
[1758130871176,5.69547389,235.89,235.82,5.69547389]
[1758130871479,4.57879393,235.92,235.84,5.69547389]
[1758130871480,0.34,235.92,235.84,5.69547389]
[1758130871767,0.34,235.92,235.79,14.84362404]
[1758130871768,0.34,235.92,235.85,0.7]
[1758130872351,5.69547389,235.91,235.86,4.23980327]
[1758130872554,0.34,235.92,235.87,0.7]
[1758130872752,5.69547389,235.89,235.84,0.7]
[1758130873055,5.16876119,235.92,235.84,0.7]
[1758130873391,5.16876119,235.92,235.76,0.7]
[1758130873392,5.69547389,235.85,235.76,0.7]
[1758130873558,5.69547389,235.82,235.76,6.39547389]
[1758130873758,0.59,235.87,235.77,10.59543282]
[1758130873954,5.69547389,235.82,235.77,10.59543282]
[1758130874165,5.69547389,235.82,235.78,0.7]
[1758130874370,0.59,235.87,235.79,4.94106196]
[1758130874672,5.69547389,235.89,235.82,5.69547389]
[1758130874980,5.69547389,235.89,235.79,4.24106196]
[1758130874981,5.16874786,235.92,235.83,6.39547389]
[1758130875158,0.93,235.92,235.83,0.7]
[1758130875359,5.69547389,235.89,235.83,0.7]
[1758130875554,0.59,235.88,235.79,4.24106196]
[1758130875753,5.69547389,235.85,235.79,4.24106196]
[1758130875981,0.59,235.88,235.8,5.69547389]
[1758130875982,5.69547389,235.84,235.8,5.69547389]
[1758130876182,5.69547389,235.83,235.8,5.69547389]
[1758130876487,4.82961197,235.88,235.8,5.69547389]
[1758130876678,0.59,235.91,235.82,5.69547389]
[1758130876871,5.69547389,235.88,235.82,6.39547389]
[1758130877198,4.57875274,235.92,235.83,0.7]
[1758130877199,5.69547389,235.89,235.83,0.7]
[1758130877353,4.57875274,235.92,235.83,0.7]
[1758130877354,0.34,235.92,235.83,6.39547389]
[1758130877557,0.34,235.92,235.86,5.69547389]
[1758130877869,6.03547389,235.92,235.85,5.69547389]
[1758130878069,5.69547389,235.91,235.85,5.69547389]
[1758130878270,6.03547389,235.92,235.86,0.7]
[1758130878559,6.03547389,235.92,235.87,4.23962352]
[1758130878907,0.34,235.92,235.87,4.93962352]
[1758130879098,0.34,235.92,235.88,0.7]
[1758130879398,0.34,235.92,235.89,0.7]
[1758130879558,0.34,235.92,235.9,0.7]
[1758130879880,0.34,235.92,235.87,10.63509741]
[1758130880048,0.34,235.92,235.88,0.7]
[1758130880390,0.34,235.92,235.89,4.93910982]
[1758130880890,0.34,235.92,235.91,5.69547389]
[1758130881391,0.59,236.05,235.91,5.69547389]
[1758130881392,5.69547389,236.02,235.91,6.39547389]
[1758130881599,5.69547389,236.03,235.92,0.7]
[1758130881769,0.59,236.07,235.98,5.69547389]
[1758130882088,5.69547389,236.05,235.97,0.7]
[1758130882274,5.69547389,236.06,235.99,5.69547389]
[1758130882455,5.69547389,236.06,235.95,35.7]
[1758130882456,5.69547389,236.03,235.95,0.7]
[1758130882783,0.59,236.06,235.95,6.39547389]
[1758130882982,5.69547389,236.03,235.96,6.39547389]
[1758130883275,0.59,236.08,235.97,6.39547389]
[1758130883459,5.69547389,236.05,235.99,5.69547389]
[1758130883652,0.59,236.08,236.0,4.23728813]
[1758130883853,5.69547389,236.05,236.0,4.23728813]
[1758130884059,5.69547389,236.05,235.99,9.93294141]
[1758130884474,5.69547389,236.04,235.99,4.23746752]
[1758130884677,4.8258816,236.08,236.0,0.7]
[1758130885086,4.23556707,236.1,236.0,0.7]
[1758130885269,17.97353711,236.13,236.0,0.7]
[1758130885270,4.23527007,236.12,236.02,5.69547389]
[1758130885467,18.56353711,236.13,236.03,0.7]
[1758130885686,4.23518945,236.12,236.03,0.7]
[1758130886061,4.23518945,236.12,236.02,12.72723416]
[1758130886062,5.69547389,236.05,236.02,12.72723416]
[1758130886267,4.82518945,236.12,235.96,0.7]
[1758130886268,5.69547389,236.03,235.96,0.7]
[1758130886489,5.69547389,236.01,235.97,12.73047464]
[1758130886792,0.59,236.09,235.98,0.7]
[1758130887093,5.69547389,236.06,235.98,0.7]
[1758130887402,5.69547389,236.04,235.98,0.7]
[1758130887572,5.69547389,236.04,235.98,6.39547389]
[1758130887777,5.69547389,236.01,235.97,12.73047464]
[1758130888090,5.69547389,236.03,235.98,0.7]
[1758130888283,5.69547389,236.01,235.98,0.7]
[1758130888485,0.59,236.06,235.97,5.69547389]
[1758130888868,5.69547389,236.05,235.98,0.7]
[1758130889077,5.69547389,236.08,235.98,0.7]
[1758130889279,22.79861041,236.13,236.02,5.69547389]
[1758130889474,5.69547389,236.09,236.03,0.7]
[1758130890199,18.56353711,236.13,236.03,4.93672502]
[1758130890200,22.79864348,236.13,236.03,4.93672502]
[1758130890376,5.69547389,236.09,236.03,4.93672502]
[1758130890584,5.69547389,236.08,236.03,0.7]
[1758130890782,22.20864348,236.13,236.04,0.7]
[1758130891078,5.69547389,236.1,236.04,0.7]
[1758130891388,22.79864348,236.13,236.04,0.7]
[1758130891599,5.69547389,236.11,236.04,6.39547389]
[1758130891804,5.69547389,236.11,236.05,4.93639059]
[1758130891988,17.97353711,236.13,236.05,10.63186448]
[1758130892184,5.69547389,236.11,236.05,10.63186448]
[1758130892394,17.97353711,236.13,236.06,0.7]
[1758130892692,22.20853773,236.13,236.06,0.7]
[1758130893005,22.20853773,236.13,236.04,5.69547389]
[1758130893211,22.20853773,236.13,236.05,0.7]
[1758130893610,17.97353711,236.13,236.05,0.7]
[1758130893819,17.97353711,236.13,236.06,4.23621113]
[1758130894025,23.669011,236.13,236.06,4.23621113]
[1758130894192,23.669011,236.13,236.06,4.93621113]
[1758130894394,17.97353711,236.13,236.06,4.93621113]
[1758130894625,5.69547389,236.12,236.06,10.63168502]
[1758130894920,5.69547389,236.12,236.06,4.93621113]
[1758130895416,5.69547389,236.12,236.06,10.63168502]
[1758130895591,5.69547389,236.1,236.03,0.7]
[1758130895928,17.97353711,236.13,236.04,4.23657007]
[1758130896092,5.69547389,236.12,236.06,5.69547389]
[1758130896426,5.69547389,236.1,236.02,0.7]
[1758130896609,5.69547389,236.06,235.99,4.23746768]
[1758130896817,5.69547389,236.05,235.99,4.93746768]
[1758130897008,5.69547389,236.06,235.99,10.63294157]
[1758130897192,5.69547389,236.05,235.99,4.93746768]
[1758130897514,5.69547389,236.04,235.99,4.93746768]
[1758130897814,0.59,236.08,235.97,4.93772639]
[1758130897815,5.69547389,236.03,235.97,4.93772639]
[1758130897989,5.69547389,236.03,235.98,0.7]
[1758130898190,0.59,236.07,235.99,0.7]
[1758130898386,5.69547389,236.02,235.97,4.23772639]
[1758130898591,5.69547389,236.02,235.98,0.7]
[1758130898813,0.59,236.07,235.99,0.7]
[1758130899031,5.69547389,236.04,235.99,0.7]
[1758130899211,17.97353711,236.13,235.97,4.23772639]
[1758130899212,5.69547389,236.02,235.97,4.23772639]
[1758130899404,5.69547389,235.99,235.92,0.7]
[1758130899610,0.59,236.04,235.94,5.69547389]
[1758130899832,5.69547389,236.0,235.94,6.39547389]
[1758130900048,5.69547389,235.99,235.93,4.23854533]
[1758130900216,5.69547389,235.96,235.91,4.93873237]
[1758130900411,5.69547389,235.94,235.89,4.23912899]
[1758130900617,5.69547389,235.92,235.89,4.93912899]
[1758130900820,0.59,235.96,235.89,4.93912899]
[1758130901028,0.59,235.96,235.89,0.7]
[1758130901239,0.59,236.01,235.91,5.69547389]
[1758130901426,5.69547389,235.98,235.91,0.7]
[1758130901627,13.59559401,236.07,235.92,4.23872499]
[1758130901628,5.69547389,235.97,235.92,4.23872499]
[1758130901825,5.69547389,235.96,235.92,4.23872499]